bitfinex/quotes_SOLUSD_20250612
["timestamp","ask_amount","ask_price","bid_price","bid_amount"]
[1749706310280,26.0,159.83,159.79,13.79313471]
[1749706310455,13.79313471,159.84,159.8,39.25313471]
[1749706310660,39.79313471,159.84,159.8,25.46]
[1749706312166,39.79313471,159.84,159.8,39.25313471]
[1749706315685,26.0,159.84,159.8,39.25313471]
[1749706315884,26.0,159.84,159.81,13.79313471]
[1749706316075,26.0,159.84,159.82,25.46]
[1749706316271,26.0,159.85,159.83,5.44]
[1749706316504,39.79313471,159.85,159.84,25.46]
[1749706319394,39.79313471,159.85,159.83,5.44]
[1749706319687,13.79313471,159.84,159.83,5.44]
[1749706326485,26.0,159.85,159.83,5.44]
[1749706326919,39.79313471,159.85,159.84,25.46]
[1749706330494,26.0,159.85,159.84,25.46]
[1749706330988,39.79313471,159.85,159.84,25.46]
[1749706331617,26.0,159.85,159.84,25.46]
[1749706331811,13.79313471,159.86,159.84,25.46]
[1749706335293,26.0,159.88,159.84,25.46]
[1749706335607,13.79313471,159.87,159.84,25.46]
[1749706336211,39.79313471,159.88,159.84,25.46]
[1749706338114,13.79313471,159.87,159.84,25.46]
[1749706338892,26.0,159.85,159.84,25.46]
[1749706339416,13.79313471,159.88,159.84,39.25313471]
[1749706339589,13.79313471,159.88,159.84,25.46]
[1749706339788,13.79313471,159.87,159.84,25.46]
[1749706340909,13.79313471,159.86,159.84,25.46]
[1749706341112,13.79313471,159.85,159.84,25.46]
[1749706342415,13.79313471,159.85,159.84,5.42]
[1749706343316,27.58626942,159.85,159.84,5.42]
[1749706343612,53.58626942,159.85,159.84,5.42]
[1749706343800,27.58626942,159.85,159.84,5.42]
[1749706343989,26.0,159.82,159.8,5.42]
[1749706344183,13.79313471,159.81,159.8,5.42]
[1749706348723,26.0,159.82,159.8,5.42]
[1749706351901,26.0,159.81,159.8,5.42]
[1749706353001,6.5665,159.87,159.8,5.42]
[1749706353207,26.0,159.84,159.8,5.42]
[1749706353516,6.5665,159.87,159.8,5.42]
[1749706353705,26.0,159.84,159.8,5.42]
[1749706353906,13.79313471,159.82,159.8,5.42]
[1749706354802,13.79313471,159.81,159.8,5.42]
[1749706358308,13.79313471,159.82,159.8,5.42]
[1749706359894,26.0,159.84,159.8,5.42]
[1749706360238,13.79313471,159.87,159.82,13.79313471]
[1749706360424,13.79313471,159.87,159.83,25.44]
[1749706360612,149.1,159.91,159.84,13.79313471]
[1749706360920,13.79313471,159.88,159.83,39.23313471]
[1749706362413,13.79313471,159.88,159.84,18.933972]
[1749706366233,13.79313471,159.88,159.83,39.23313471]
[1749706366554,13.79313471,159.84,159.8,19.21313471]
[1749706366840,13.79313471,159.83,159.8,24.06964886]
[1749706367033,13.79313471,159.83,159.81,25.44]
[1749706368037,13.79313471,159.83,159.8,5.42]
[1749706368340,13.79313471,159.83,159.81,25.44]
[1749706368531,13.79313471,159.82,159.8,5.42]
[1749706368733,13.79313471,159.82,159.81,25.44]
[1749706369117,13.79313471,159.82,159.8,5.42]
[1749706369320,13.79313471,159.82,159.81,25.44]
[1749706369720,13.79313471,159.83,159.81,25.44]
[1749706370043,13.79313471,159.84,159.81,25.44]
[1749706370225,39.79313471,159.85,159.81,25.44]
[1749706370733,1.6593,159.9,159.83,13.79313471]
[1749706370950,13.79313471,159.87,159.84,25.44]
[1749706373344,13.79313471,159.88,159.84,39.23313471]
[1749706374043,26.0,159.89,159.84,39.23313471]
[1749706374044,13.79313471,159.87,159.84,25.44]
[1749706375049,26.0,159.89,159.84,25.44]
[1749706375244,13.79313471,159.87,159.84,25.44]
[1749706379541,13.79313471,159.86,159.84,25.44]
[1749706381552,26.0,159.89,159.84,25.44]
[1749706381739,13.79313471,159.86,159.84,25.44]
[1749706382141,13.79313471,159.87,159.84,25.44]
[1749706384249,26.0,159.89,159.84,39.23313471]
[1749706384445,13.79313471,159.9,159.86,13.79313471]
[1749706384756,13.79313471,159.91,159.87,25.44]
[1749706387335,39.79313471,159.92,159.88,13.79313471]
[1749706387534,39.79313471,159.92,159.89,5.42]
[1749706387760,39.79313471,159.92,159.9,25.44]
[1749706388155,26.0,159.92,159.9,25.44]
[1749706388347,13.79313471,159.94,159.9,25.44]
[1749706388549,13.79313471,159.92,159.9,25.44]
[1749706389268,26.0,159.93,159.9,25.44]
[1749706389459,13.79313471,159.92,159.9,25.44]
[1749706392544,13.79313471,159.91,159.9,25.44]
[1749706392746,26.0,159.93,159.9,25.44]
[1749706392972,13.79313471,159.91,159.9,25.42]
[1749706396750,13.79313471,159.91,159.89,5.42]
[1749706396949,6.1546,159.96,159.89,5.42]
[1749706396950,39.79313471,159.9,159.89,5.42]
[1749706399209,20.02783471,159.9,159.89,5.42]
[1749706400508,46.02783471,159.9,159.89,5.42]
[1749706400691,26.0,159.87,159.84,5.42]
[1749706400898,13.79313471,159.85,159.84,5.42]
[1749706406689,53.58626942,159.85,159.84,5.42]
[1749706406883,27.58626942,159.85,159.84,5.42]
[1749706407086,53.58626942,159.85,159.84,5.42]
[1749706407285,27.58626942,159.85,159.84,5.42]
[1749706409393,53.58626942,159.85,159.84,5.42]
[1749706409701,27.58626942,159.85,159.84,5.42]
[1749706412010,53.58626942,159.85,159.84,5.42]
[1749706412313,27.58626942,159.85,159.84,5.42]
[1749706412687,13.79313471,159.85,159.84,5.42]
[1749706414193,39.79313471,159.85,159.84,5.42]
[1749706414411,27.58626942,159.85,159.84,5.42]
[1749706416092,53.58626942,159.85,159.84,5.42]
[1749706416495,13.79313471,159.85,159.84,5.42]
[1749706419317,53.58626942,159.85,159.84,5.42]
[1749706419504,27.58626942,159.85,159.84,5.42]
[1749706422531,26.0,159.84,159.79,5.42]
[1749706422819,13.79313471,159.8,159.79,5.42]
[1749706428116,26.0,159.77,159.71,8.1993]
[1749706428321,26.0,159.73,159.72,5.42]
[1749706428622,39.79313471,159.73,159.72,5.42]
[1749706430210,13.79313471,159.74,159.72,5.42]
[1749706430825,13.79313471,159.73,159.72,5.42]
[1749706431500,39.79313471,159.73,159.72,5.42]
[1749706432025,13.79313471,159.73,159.72,5.42]
[1749706435042,26.0,159.75,159.72,30.86]
[1749706435328,39.79313471,159.75,159.72,30.86]
[1749706436323,13.79313471,159.76,159.72,30.86]
[1749706440529,13.79313471,159.75,159.72,30.86]
[1749706440737,13.79313471,159.73,159.72,5.42]
[1749706445911,26.0,159.7,159.68,5.42]
[1749706446117,13.79313471,159.69,159.68,5.42]
[1749706449631,27.58626942,159.69,159.68,5.42]
[1749706452146,27.58626942,159.69,159.64,5.42]
[1749706452147,26.0,159.66,159.64,5.42]
[1749706452323,13.79313471,159.65,159.64,5.42]
[1749706461826,39.79313471,159.65,159.64,5.42]
[1749706462021,26.0,159.65,159.64,5.42]
[1749706467447,26.0,159.65,159.64,19.21313471]
[1749706467647,26.0,159.65,159.64,5.42]
[1749706469231,26.0,159.65,159.64,19.21313471]
[1749706469661,26.0,159.66,159.64,19.21313471]
[1749706469827,26.0,159.66,159.65,25.46]
[1749706472160,26.0,159.71,159.65,25.46]
[1749706472368,26.0,159.66,159.65,25.46]
[1749706474073,26.0,159.71,159.65,39.25313471]
[1749706474275,26.0,159.71,159.66,13.79313471]
[1749706474482,13.79313471,159.71,159.66,13.79313471]
[1749706474652,13.79313471,159.72,159.68,13.79313471]
[1749706474855,13.79313471,159.72,159.64,6.9706]
[1749706474856,13.79313471,159.74,159.7,13.79313471]
[1749706475189,13.79313471,159.76,159.71,13.79313471]
[1749706475490,26.0,159.73,159.72,39.25313471]
[1749706475663,13.79313471,159.76,159.72,44.67313471]
[1749706475858,13.79313471,159.76,159.72,30.88]
[1749706476051,26.0,159.73,159.72,30.88]
[1749706476477,13.79313471,159.73,159.71,5.42]
[1749706476719,13.79313471,159.72,159.71,5.42]
[1749706498220,162.89313471,159.76,159.71,5.42]
[1749706498221,13.79313471,159.73,159.71,5.42]
[1749706498408,13.79313471,159.74,159.71,5.42]
[1749706498784,26.0,159.72,159.71,5.42]
[1749706501723,26.0,159.73,159.71,5.42]
[1749706501920,39.79313471,159.73,159.71,5.42]
[1749706502820,13.79313471,159.72,159.71,5.42]
[1749706504627,39.79313471,159.72,159.71,5.42]
[1749706504922,13.79313471,159.72,159.71,5.42]
[1749706505123,39.79313471,159.72,159.71,5.42]
[1749706505307,13.79313471,159.72,159.71,5.42]
[1749706507225,39.79313471,159.72,159.71,5.42]
[1749706507404,13.79313471,159.72,159.71,5.42]
[1749706507798,39.79313471,159.72,159.71,5.42]
[1749706508121,13.79313471,159.72,159.71,5.42]
[1749706508816,149.1,159.76,159.71,5.42]
[1749706508994,13.79313471,159.72,159.71,5.42]
[1749706510535,1.6357,159.78,159.71,5.42]
[1749706510740,13.79313471,159.74,159.71,5.42]
[1749706511110,26.0,159.76,159.71,5.42]
[1749706511335,13.79313471,159.75,159.71,19.21313471]
[1749706511537,13.79313471,159.75,159.72,25.44]
[1749706513332,13.79313471,159.76,159.72,25.44]
[1749706514026,26.0,159.78,159.73,13.79313471]
[1749706514270,26.0,159.78,159.72,25.44]
[1749706514271,149.1,159.81,159.75,13.79313471]
[1749706514408,13.79313471,159.79,159.75,13.79313471]
[1749706517022,13.79313471,159.8,159.76,13.79313471]
[1749706517345,13.79313471,159.8,159.77,25.46]
[1749706518009,13.79313471,159.79,159.77,25.46]
[1749706521446,13.79313471,159.8,159.77,25.46]
[1749706523218,13.79313471,159.79,159.74,13.79313471]
[1749706523421,13.79313471,159.77,159.75,25.44]
[1749706523826,13.79313471,159.79,159.75,25.44]
[1749706524040,13.79313471,159.8,159.76,13.79313471]
[1749706524339,13.79313471,159.81,159.76,13.79313471]
[1749706524540,13.79313471,159.8,159.76,13.79313471]
[1749706524742,13.79313471,159.79,159.75,25.44]
[1749706524924,13.79313471,159.77,159.75,25.44]
[1749706525423,13.79313471,159.77,159.73,13.79313471]
[1749706525742,13.79313471,159.77,159.76,25.44]
[1749706527251,13.79313471,159.77,159.73,13.79313471]
[1749706527430,13.79313471,159.77,159.76,25.44]
[1749706527934,13.79313471,159.78,159.76,25.44]
[1749706528522,13.79313471,159.8,159.76,39.23313471]
[1749706528733,13.79313471,159.82,159.77,13.79313471]
[1749706529654,26.0,159.83,159.79,13.79313471]
[1749706529961,39.79313471,159.83,159.8,30.86]
[1749706531439,13.79313471,159.82,159.8,30.86]
[1749706532129,26.0,159.83,159.8,30.86]
[1749706532324,13.79313471,159.81,159.8,30.86]
[1749706532546,13.79313471,159.81,159.8,5.42]
[1749706532752,39.79313471,159.81,159.8,5.42]
[1749706535658,13.79313471,159.81,159.8,5.42]
[1749706537360,39.79313471,159.81,159.8,5.42]
[1749706538169,58.72710671,159.81,159.8,5.42]
[1749706538353,58.72710671,159.81,159.7,13.79313471]
[1749706538354,0.28432314,159.8,159.75,5.42]
[1749706538663,13.79313471,159.76,159.75,5.42]
[1749706539948,26.0,159.78,159.75,5.42]
[1749706540132,13.79313471,159.76,159.75,5.42]
[1749706547467,26.0,159.77,159.75,5.42]
[1749706547656,13.79313471,159.76,159.75,5.42]
[1749706549057,13.79313471,159.77,159.75,5.42]
[1749706549549,13.79313471,159.76,159.75,5.42]
[1749706551946,13.79313471,159.76,159.75,30.88]
[1749706555670,39.79313471,159.76,159.75,30.88]
[1749706556575,26.0,159.76,159.75,30.88]
[1749706556768,39.79313471,159.76,159.75,30.88]
[1749706557272,13.79313471,159.79,159.75,44.67313471]
[1749706557480,13.79313471,159.79,159.75,30.88]
[1749706560779,13.79313471,159.79,159.75,44.67313471]
[1749706560982,26.0,159.8,159.75,30.88]
[1749706561162,13.79313471,159.83,159.78,13.79313471]
[1749706561484,39.79313471,159.83,159.79,25.44]
[1749706562755,26.0,159.83,159.79,39.23313471]
[1749706564372,13.79313471,159.84,159.8,13.79313471]
[1749706564560,150.6722,159.88,159.8,13.79313471]
[1749706564762,13.79313471,159.85,159.81,13.79313471]
[1749706564961,13.79313471,159.85,159.82,25.44]
[1749706565982,26.0,159.85,159.82,25.44]
[1749706566491,13.79313471,159.86,159.82,39.23313471]
[1749706567176,26.0,159.86,159.82,39.23313471]
[1749706567771,26.0,159.89,159.82,39.23313471]
[1749706567969,26.0,159.86,159.83,13.79313471]
[1749706568172,13.79313471,159.87,159.84,5.44]
[1749706568173,26.0,159.85,159.84,5.44]
[1749706568365,26.0,159.85,159.84,30.88]
[1749706569571,39.79313471,159.87,159.84,30.88]
[1749706572487,26.0,159.87,159.84,44.67313471]
[1749706572961,13.79313471,159.88,159.84,44.67313471]
[1749706573570,13.79313471,159.88,159.84,30.88]
[1749706575257,13.79313471,159.88,159.84,44.67313471]
[1749706575488,13.79313471,159.89,159.85,13.79313471]
[1749706575672,13.79313471,159.89,159.86,25.42]
[1749706575876,39.79313471,159.9,159.86,25.42]
[1749706576465,13.79313471,159.89,159.86,25.42]
[1749706579995,26.0,159.9,159.86,25.42]
[1749706580198,13.79313471,159.89,159.86,25.42]
[1749706580690,13.79313471,159.88,159.86,25.42]
[1749706584889,26.0,159.9,159.86,25.42]
[1749706585086,13.79313471,159.89,159.86,25.42]
[1749706585292,39.79313471,159.9,159.86,25.42]
[1749706586100,13.79313471,159.9,159.86,25.42]
[1749706586299,13.79313471,159.89,159.86,25.42]
[1749706587008,26.0,159.9,159.86,25.42]
[1749706587194,149.1,159.93,159.86,25.42]
[1749706587195,13.79313471,159.91,159.87,13.79313471]
[1749706587498,175.1,159.93,159.87,13.79313471]
[1749706587499,13.79313471,159.92,159.87,13.79313471]
[1749706588788,13.79313471,159.92,159.88,13.79313471]
[1749706589003,13.79313471,159.92,159.89,25.42]
[1749706589502,13.79313471,159.91,159.89,25.42]
[1749706589898,26.0,159.93,159.89,25.42]
[1749706590108,13.79313471,159.92,159.89,25.42]
[1749706590283,39.79313471,159.93,159.89,25.42]
[1749706590901,39.79313471,159.93,159.89,39.21313471]
[1749706591093,13.79313471,159.94,159.89,39.21313471]
[1749706592105,13.79313471,159.93,159.89,39.21313471]
[1749706594915,26.0,159.95,159.89,39.21313471]
[1749706595096,34.71883009,159.98,159.92,13.79313471]
[1749706595404,13.79313471,159.94,159.93,30.82]
[1749706596513,2.48773009,159.98,159.93,30.82]
[1749706596725,2.48773009,159.98,159.93,44.61313471]
[1749706596726,13.79313471,159.97,159.93,44.61313471]
[1749706596932,13.79313471,159.97,159.93,30.82]
[1749706597118,13.79313471,159.96,159.93,30.82]
[1749706597285,39.79313471,159.97,159.93,30.82]
[1749706597614,26.0,159.97,159.93,44.61313471]
[1749706597783,39.79313471,159.97,159.93,44.61313471]
[1749706597984,39.79313471,159.97,159.93,30.82]
[1749706598203,26.0,159.97,159.93,44.61313471]
[1749706598406,39.79313471,159.97,159.93,44.61313471]
[1749706599200,2.48773009,159.98,159.93,44.61313471]
[1749706599606,13.79313471,159.97,159.93,44.61313471]
[1749706599798,13.79313471,159.97,159.93,30.82]
[1749706600005,13.79313471,159.97,159.93,44.61313471]
[1749706600821,2.48773009,159.98,159.94,13.79313471]
[1749706601119,2.48773009,159.98,159.97,13.79313471]
[1749706601315,2.48773009,159.98,159.97,39.29313471]
[1749706601501,2.48773009,159.98,159.97,25.5]
[1749706601911,2.48773009,159.98,159.97,39.29313471]
[1749706603113,2.48773009,159.98,159.97,25.5]
[1749706603313,2.48773009,159.98,159.97,5.46]
[1749706603314,16.2808648,159.98,159.97,5.46]
[1749706603795,16.2808648,159.98,159.97,30.96]
[1749706605122,16.2808648,159.98,159.97,30.98]
[1749706605827,16.2808648,159.98,159.97,30.96]
[1749706606037,28.48773009,159.98,159.97,30.96]
[1749706606229,42.2808648,159.98,159.97,30.96]
[1749706607620,42.2808648,159.98,159.97,5.46]
[1749706607831,43.8084648,159.98,159.97,5.46]
[1749706617516,43.8084648,159.98,159.94,5.46]
[1749706617832,13.79313471,159.95,159.94,5.46]
[1749706620445,26.0,159.92,159.91,5.46]
[1749706620608,39.79313471,159.92,159.91,5.46]
[1749706621214,13.79313471,159.92,159.91,5.46]
[1749706622143,27.58626942,159.92,159.91,30.94]
[1749706622439,27.58626942,159.92,159.91,5.46]
[1749706627754,27.87059256,159.92,159.91,5.46]
[1749706627955,27.87059256,159.92,159.87,30.92]
[1749706628259,13.79313471,159.88,159.87,30.92]
[1749706631069,13.79313471,159.88,159.87,5.46]
[1749706631245,13.79313471,159.88,159.87,30.92]
[1749706637154,26.0,159.89,159.87,30.92]
[1749706637345,13.79313471,159.88,159.87,30.92]
[1749706638863,26.0,159.89,159.87,30.92]
[1749706639160,13.79313471,159.88,159.87,30.92]
[1749706641374,13.79313471,159.88,159.87,5.46]
[1749706641899,15.41793471,159.88,159.87,5.46]
[1749706645475,13.79313471,159.88,159.87,5.46]
[1749706646157,26.0,159.89,159.87,5.46]
[1749706646360,13.79313471,159.88,159.87,5.46]
[1749706648874,26.0,159.89,159.87,5.46]
[1749706649051,13.79313471,159.88,159.87,5.46]
[1749706656179,26.0,159.89,159.87,5.46]
[1749706656480,13.79313471,159.88,159.87,5.46]
[1749706660723,26.0,159.89,159.87,5.46]
[1749706660724,13.79313471,159.89,159.87,5.46]
[1749706661005,13.79313471,159.89,159.88,25.42]
[1749706662688,1.93582314,159.96,159.88,39.21313471]
[1749706662689,13.79313471,159.92,159.88,39.21313471]
[1749706662889,13.79313471,159.93,159.89,13.79313471]
[1749706663304,13.79313471,159.92,159.88,25.42]
[1749706663815,13.79313471,159.93,159.89,13.79313471]
[1749706663986,13.79313471,159.94,159.89,13.79313471]
[1749706664579,13.79313471,159.93,159.89,13.79313471]
[1749706666205,13.79313471,159.92,159.88,39.21313471]
[1749706666512,13.79313471,159.89,159.87,5.46]
[1749706666708,13.79313471,159.9,159.88,25.42]
[1749706668311,26.0,159.95,159.88,25.42]
[1749706668490,13.79313471,159.9,159.88,25.42]
[1749706672606,13.79313471,159.89,159.87,5.46]
[1749706672815,13.79313471,159.92,159.88,25.42]
[1749706673407,13.79313471,159.92,159.89,25.42]
[1749706674102,13.79313471,159.9,159.89,25.42]
[1749706676015,13.79313471,159.9,159.87,5.46]
[1749706676222,13.79313471,159.9,159.88,25.42]
[1749706677096,27.5766,159.94,159.88,25.42]
[1749706677411,13.79313471,159.89,159.88,25.42]
[1749706677811,13.29313471,159.89,159.88,25.42]
[1749706678013,27.5766,159.94,159.88,25.42]
[1749706678198,13.79313471,159.89,159.88,25.42]
[1749706679445,13.79313471,159.9,159.88,25.42]
[1749706679919,13.79313471,159.92,159.88,25.42]
[1749706680514,13.79313471,159.91,159.88,25.42]
[1749706682525,13.79313471,159.9,159.88,25.42]
[1749706682718,13.79313471,159.91,159.88,25.42]
[1749706685324,13.79313471,159.9,159.88,25.42]
[1749706685927,13.79313471,159.91,159.88,25.42]
[1749706686108,13.79313471,159.9,159.88,25.42]
[1749706687006,26.0,159.95,159.88,25.42]
[1749706687207,13.79313471,159.9,159.88,25.42]
[1749706689927,26.0,159.95,159.88,25.42]
[1749706690108,13.79313471,159.9,159.88,25.42]
[1749706692916,13.79313471,159.89,159.88,25.42]
[1749706693127,13.79313471,159.89,159.87,5.46]
[1749706693310,13.79313471,159.88,159.87,5.46]
[1749706693506,13.79313471,159.88,159.87,30.88]
[1749706694728,13.79313471,159.88,159.87,5.46]
[1749706696312,13.79313471,159.88,159.87,30.88]
[1749706697310,13.79313471,159.88,159.87,5.46]
[1749706697511,13.79313471,159.88,159.87,30.88]
[1749706698009,13.79313471,159.88,159.87,5.46]
[1749706700115,39.79313471,159.88,159.87,5.46]
[1749706704234,39.79313471,159.88,159.87,30.88]
[1749706721155,13.79313471,159.88,159.87,30.88]
[1749706721447,13.79313471,159.89,159.87,30.88]
[1749706722047,13.79313471,159.9,159.87,30.88]
[1749706722255,1.5732,159.97,159.87,46.20843471]
[1749706722459,13.79313471,159.92,159.87,46.20843471]
[1749706723452,8.80178078,159.92,159.88,8.80178078]
[1749706723750,8.80178078,159.92,159.89,25.42]
[1749706725260,13.75274281,159.92,159.89,25.42]
[1749706730151,13.75274281,159.91,159.89,25.42]
[1749706730654,13.75274281,159.9,159.89,25.42]
[1749706730959,13.75274281,159.9,159.89,25.4]
[1749706735737,13.75274281,159.9,159.87,5.46]
[1749706735944,13.75274281,159.9,159.89,25.4]
[1749706736452,13.75274281,159.9,159.87,5.46]
[1749706736655,39.75274281,159.88,159.87,5.46]
[1749706736855,39.75274281,159.88,159.87,30.86]
[1749706740676,39.75274281,159.88,159.87,5.46]
[1749706740884,39.75274281,159.88,159.87,30.86]
[1749706745581,39.75274281,159.88,159.81,18.64964886]
[1749706745791,13.75274281,159.82,159.77,18.64964886]
[1749706745963,13.75274281,159.82,159.79,18.64964886]
[1749706746288,39.75274281,159.83,159.8,25.4]
[1749706749585,39.75274281,159.83,159.79,32.40239167]
[1749706749881,39.75274281,159.83,159.8,25.42]
[1749706750280,26.0,159.83,159.8,25.42]
[1749706750473,13.75274281,159.81,159.8,25.42]
[1749706750886,27.5376,159.86,159.8,25.42]
[1749706751076,13.75274281,159.82,159.81,25.42]
[1749706752780,13.75274281,159.83,159.81,25.42]
[1749706755986,13.75274281,159.83,159.79,18.64964886]
[1749706756295,13.75274281,159.83,159.8,25.42]
[1749706757291,8.81186067,159.83,159.8,25.42]
[1749706757992,8.81186067,159.85,159.81,27.46150953]
[1749706758208,8.81186067,159.85,159.82,25.42]
[1749706758776,8.81186067,159.84,159.82,25.42]
[1749706759170,8.81186067,159.84,159.83,5.4]
[1749706760196,26.0,159.86,159.83,5.4]
[1749706760399,26.0,159.86,159.84,25.42]
[1749706760599,8.81186067,159.85,159.84,25.42]
[1749706767322,44.05930335,159.85,159.83,5.4]
[1749706767481,44.05930335,159.84,159.83,5.4]
[1749706767800,44.05930335,159.84,159.83,30.8]
[1749706768405,44.05930335,159.84,159.83,5.4]
[1749706768585,44.05930335,159.84,159.83,30.8]
[1749706769274,27.54915398,159.84,159.83,5.4]
[1749706769474,27.54915398,159.84,159.8,25.4]
[1749706769713,13.77457699,159.81,159.8,30.8]
[1749706773086,39.77457699,159.81,159.8,30.8]
[1749706776414,39.77457699,159.81,159.8,30.82]
[1749706783520,26.0,159.81,159.8,30.82]
[1749706783694,39.77457699,159.81,159.8,30.82]
[1749706789937,15.38317699,159.81,159.8,5.4]
[1749706790105,15.38317699,159.81,159.78,30.82]
[1749706790106,26.0,159.79,159.78,30.82]
[1749706790425,39.77457699,159.79,159.78,5.4]
[1749706794529,53.54915398,159.79,159.78,5.4]
[1749706795400,53.54915398,159.79,159.75,25.42]
[1749706795401,70.11937885,159.79,159.75,30.82]
[1749706795618,44.11937885,159.76,159.75,30.82]
[1749706796023,44.11937885,159.76,159.75,5.4]
[1749706799217,53.57754148,159.76,159.75,5.4]
[1749706803912,55.15334148,159.76,159.71,5.4]
[1749706804110,13.78877074,159.72,159.71,5.4]
[1749706813534,26.0,159.69,159.68,5.4]
[1749706813737,13.78877074,159.69,159.68,5.4]
[1749706814728,27.57754148,159.69,159.68,5.4]
[1749706814924,53.57754148,159.69,159.68,5.4]
[1749706816560,26.0,159.66,159.65,5.4]
[1749706816851,39.78877074,159.66,159.65,5.4]
[1749706818721,13.78877074,159.66,159.65,5.4]
[1749706819038,26.0,159.63,159.62,5.4]
[1749706819239,39.78877074,159.63,159.62,5.4]
[1749706820921,53.57754148,159.63,159.62,5.4]
[1749706821427,53.57754148,159.63,159.58,48.62]
[1749706821626,13.78877074,159.59,159.58,48.62]
[1749706821926,13.78877074,159.59,159.58,5.4]
[1749706822125,26.0,159.57,159.55,5.4]
[1749706822341,13.78877074,159.56,159.55,5.4]
[1749706822955,26.0,159.54,159.53,5.4]
[1749706823326,39.78877074,159.54,159.53,5.4]
[1749706823954,26.0,159.57,159.53,5.4]
[1749706824161,13.78877074,159.54,159.53,5.4]
[1749706827245,167.74964886,159.58,159.53,5.4]
[1749706827453,13.78877074,159.54,159.53,5.4]
[1749706827853,26.0,159.54,159.53,5.4]
[1749706828943,13.78877074,159.54,159.53,5.4]
[1749706829261,14.07309388,159.54,159.53,5.4]
[1749706832646,32.72274274,159.54,159.53,5.4]
[1749706832840,34.24544274,159.54,159.53,5.4]
[1749706833354,39.25985918,159.54,159.53,5.4]
[1749706833549,26.0,159.51,159.46,5.4]
[1749706833754,13.78877074,159.49,159.46,5.4]
[1749706834562,13.78877074,159.5,159.46,5.4]
[1749706835064,13.78877074,159.5,159.46,19.18877074]
[1749706835265,26.0,159.51,159.49,13.78877074]
[1749706835947,26.0,159.52,159.49,13.78877074]
[1749706836456,26.0,159.51,159.49,13.78877074]
[1749706837157,26.0,159.51,159.48,13.78877074]
[1749706840761,26.0,159.51,159.49,13.78877074]
[1749706840948,26.0,159.51,159.49,39.24877074]
[1749706841158,13.78877074,159.55,159.5,13.78877074]
[1749706841476,26.0,159.52,159.5,13.78877074]
[1749706841977,26.0,159.55,159.51,13.78877074]
[1749706843172,26.0,159.55,159.51,19.18877074]
[1749706844273,39.78877074,159.55,159.51,19.18877074]
[1749706844976,26.0,159.55,159.53,13.78877074]
[1749706845165,26.0,159.54,159.53,13.78877074]
[1749706845368,18.64964886,159.6,159.53,13.78877074]
[1749706845572,26.0,159.55,159.53,13.78877074]
[1749706846162,39.78877074,159.54,159.47,7.8726]
[1749706846366,26.0,159.52,159.51,5.4]
[1749706846562,26.0,159.5,159.49,5.4]
[1749706847079,39.78877074,159.51,159.49,5.4]
[1749706847782,26.0,159.51,159.49,5.4]
[1749706848776,26.0,159.53,159.49,19.18877074]
[1749706848953,13.78877074,159.53,159.49,19.18877074]
[1749706849875,26.0,159.54,159.51,13.78877074]
[1749706850059,0.28432314,159.56,159.49,5.4]
[1749706850060,14.07309388,159.56,159.52,13.78877074]
[1749706850264,40.07309388,159.56,159.51,13.78877074]
[1749706850475,40.07309388,159.56,159.49,5.4]
[1749706850679,40.07309388,159.56,159.51,13.78877074]
[1749706850680,13.78877074,159.55,159.51,13.78877074]
[1749706851680,13.78877074,159.55,159.5,13.78877074]